bitfinex/quotes_ETHUSD_20250930
["timestamp","ask_amount","ask_price","bid_price","bid_amount"]
[1759205286603,0.001,4205.2,4205.1,20.8959206]
[1759205286899,0.001,4205.2,4205.1,25.1059206]
[1759205287327,0.001,4205.2,4205.1,25.8979206]
[1759205287727,0.001,4205.2,4205.1,25.3447206]
[1759205289613,0.001,4205.2,4205.1,26.1367206]
[1759205295430,0.001,4205.2,4205.1,21.9267206]
[1759205300810,0.001,4205.2,4205.1,18.5489206]
[1759205301119,0.2284,4205.2,4205.1,21.2379206]
[1759205301519,0.001,4205.2,4205.1,21.2379206]
[1759205310056,0.001,4205.7,4205.6,2.377782]
[1759205310230,0.001,4205.7,4205.6,8.595182]
[1759205310430,0.001,4205.7,4205.6,8.713582]
[1759205310739,0.001,4205.7,4205.6,23.213582]
[1759205311572,0.001,4205.7,4205.6,19.686182]
[1759205311747,0.001,4205.7,4205.6,20.98852523]
[1759205311948,0.001,4205.7,4205.6,21.22412523]
[1759205312145,0.001,4205.7,4205.6,20.87012523]
[1759205312456,0.001,4205.7,4205.6,21.67642523]
[1759205312861,0.001,4205.7,4205.6,21.22412523]
[1759205313059,0.001,4205.7,4205.6,20.98852523]
[1759205314070,0.001,4205.7,4205.6,21.67642523]
[1759205316368,0.001,4205.7,4205.6,20.98852523]
[1759205316534,0.6826,4205.7,4205.6,20.98852523]
[1759205318754,0.6826,4205.7,4205.6,15.92074323]
[1759205319004,0.6826,4205.7,4205.6,18.61074323]
[1759205319436,0.6826,4205.7,4205.6,20.98852523]
[1759205319841,0.6826,4205.7,4205.6,18.61074323]
[1759205320371,0.6826,4205.7,4205.6,20.98852523]
[1759205321075,0.2284,4205.7,4205.6,20.98852523]
[1759205321774,0.001,4205.7,4205.6,20.98852523]
[1759205322076,0.001,4205.7,4205.6,21.68342523]
[1759205322649,0.001,4205.7,4205.6,21.23582523]
[1759205323690,0.001,4205.7,4205.6,21.56502523]
[1759205323861,0.001,4205.7,4205.6,21.68342523]
[1759205324689,0.001,4205.7,4205.6,20.98852523]
[1759205324857,0.001,4206.1,4205.8,2.37766893]
[1759205325062,0.001,4206.1,4206.0,2.37755587]
[1759205325287,0.001,4206.1,4206.0,2.49595587]
[1759205325690,0.243,4206.1,4206.0,2.49595587]
[1759205328497,0.243,4206.1,4206.0,16.99595587]
[1759205330001,0.001,4206.1,4206.0,16.99595587]
[1759205330171,0.001,4206.1,4206.0,17.24109837]
[1759205330622,0.001,4206.1,4206.0,14.8635425]
[1759205330807,0.243,4206.1,4206.0,18.3899425]
[1759205331404,0.7054,4206.1,4206.0,18.3899425]
[1759205332679,0.7054,4206.1,4206.0,18.1448]
[1759205333082,0.7054,4206.1,4206.0,20.52235587]
[1759205333292,0.243,4206.1,4206.0,20.52235587]
[1759205333611,0.243,4206.1,4206.0,18.1448]
[1759205336378,0.7054,4206.1,4206.0,20.8348]
[1759205342214,0.243,4206.1,4206.0,20.8348]
[1759205342402,0.243,4206.1,4206.0,23.21235587]
[1759205344218,0.001,4206.1,4206.0,23.21235587]
[1759205344530,0.001,4206.1,4206.0,26.3045613]
[1759205348015,0.001,4206.1,4206.0,22.9196613]
[1759205348219,0.001,4206.1,4206.0,25.6096613]
[1759205348433,0.001,4206.1,4206.0,26.3045613]
[1759205355552,0.001,4206.1,4206.0,25.6096613]
[1759205355850,0.2262,4206.1,4206.0,25.6096613]
[1759205356051,0.001,4206.1,4206.0,25.6096613]
[1759205357074,0.001,4206.1,4206.0,25.6086613]
[1759205357648,0.001,4206.1,4206.0,25.8576613]
[1759205358636,0.001,4206.1,4206.0,25.6086613]
[1759205360950,0.2262,4206.1,4206.0,25.6086613]
[1759205361154,0.001,4206.1,4206.0,25.6086613]
[1759205363164,0.001,4206.1,4206.0,22.9196613]
[1759205363466,0.001,4206.1,4206.0,25.6086613]
[1759205371349,0.001,4206.1,4206.0,26.3049613]
[1759205372490,0.001,4206.1,4206.0,25.8576613]
[1759205372656,0.001,4206.1,4206.0,25.6086613]
[1759205373390,0.6637,4206.1,4206.0,18.1448]
[1759205373571,0.6637,4206.1,4206.0,20.8338]
[1759205376165,0.2262,4206.1,4206.0,20.8338]
[1759205376385,0.6637,4206.1,4206.0,20.8338]
[1759205380493,0.2262,4206.1,4206.0,20.8338]
[1759205380800,0.001,4206.1,4206.0,20.8338]
[1759205382203,0.001,4206.1,4206.0,21.5152]
[1759205383020,0.001,4206.1,4206.0,20.8338]
[1759205383191,0.2485,4206.1,4206.0,20.8338]
[1759205383389,0.001,4206.1,4206.0,18.1448]
[1759205383722,0.2485,4206.1,4206.0,20.8338]
[1759205386314,0.001,4206.1,4206.0,20.8338]
[1759205389710,0.001,4206.1,4206.0,21.0633]
[1759205390213,0.001,4206.1,4206.0,7.0152]
[1759205390612,0.001,4206.1,4206.0,21.5152]
[1759205393217,0.001,4206.1,4206.0,21.0633]
[1759205393918,0.001,4206.1,4206.0,20.8338]
[1759205395626,0.001,4206.1,4206.0,18.1448]
[1759205395930,0.001,4206.1,4206.0,20.8338]
[1759205397326,0.001,4206.1,4206.0,21.5152]
[1759205400300,6.13505827,4206.1,4206.0,14.6184]
[1759205400495,9.63623344,4206.1,4206.0,2.8074]
[1759205400725,6.59875827,4206.1,4206.0,2.8074]
[1759205400918,0.2485,4206.1,4206.0,2.8074]
[1759205401725,0.7122,4206.1,4206.0,2.8074]
[1759205403838,0.2485,4206.1,4206.0,0.1184]
[1759205404028,0.7122,4206.1,4206.0,2.8074]
[1759205404443,0.7122,4206.1,4206.0,17.3074]
[1759205404643,0.2485,4206.1,4206.0,17.3074]
[1759205404944,3.08969934,4206.1,4206.0,17.3074]
[1759205407333,7.22516691,4206.1,4206.0,2.8074]
[1759205408548,7.22516691,4206.1,4206.0,0.1184]
[1759205409453,3.0,4206.0,4205.8,2.689]
[1759205409642,9.04903743,4205.9,4205.8,2.689]
[1759205409841,2.37766893,4205.8,4205.7,2.8074]
[1759205410054,2.62606893,4205.8,4205.7,0.1184]
[1759205410927,2.62606893,4205.8,4205.7,3.6448]
[1759205411333,6.60182406,4205.9,4205.7,3.6448]
[1759205411541,2.37766893,4205.8,4205.7,3.6448]
[1759205412450,2.37766893,4205.8,4205.7,6.3338]
[1759205412749,2.62606893,4205.8,4205.7,6.3338]
[1759205416330,2.62606893,4205.8,4205.7,20.8338]
[1759205416767,3.34133473,4205.8,4205.7,20.8338]
[1759205419673,6.34133473,4205.8,4205.7,6.3338]
[1759205419971,6.34133473,4205.8,4205.7,20.8338]
[1759205421269,6.34133473,4205.8,4205.7,18.1448]
[1759205421780,5.37772546,4205.7,4205.6,0.002]
[1759205421965,5.49612546,4205.7,4205.6,0.002]
[1759205422162,6.18722546,4205.7,4205.6,0.002]
[1759205422676,6.28261083,4205.7,4205.6,0.002]
[1759205422990,8.41863279,4205.7,4205.6,0.002]
[1759205423663,11.10763279,4205.7,4205.6,0.002]
[1759205424487,8.41863279,4205.7,4205.6,0.002]
[1759205424796,11.10763279,4205.7,4205.6,0.002]
[1759205427593,8.41863279,4205.7,4205.6,0.002]
[1759205427894,11.10763279,4205.7,4205.6,0.002]
[1759205428970,10.65463279,4205.7,4205.6,0.002]
[1759205429695,7.96563279,4205.7,4205.6,0.002]
[1759205429897,10.65463279,4205.7,4205.6,0.002]
[1759205430389,11.10763279,4205.7,4205.6,0.002]
[1759205430785,10.29813279,4205.7,4205.6,0.002]
[1759205430991,5.47311083,4205.7,4205.6,0.4411]
[1759205431196,5.47311083,4205.7,4205.6,0.8089]
[1759205431197,2.47311083,4205.7,4205.6,0.8089]
[1759205431372,2.47311083,4205.7,4205.6,15.3089]
[1759205432696,2.47311083,4205.7,4205.6,14.502]
[1759205433077,2.71121083,4205.7,4205.6,14.502]
[1759205433276,2.71121083,4205.7,4205.6,0.002]
[1759205433501,3.16421083,4205.7,4205.6,0.002]
[1759205433704,7.67048947,4205.7,4205.6,0.002]
[1759205435006,7.21748947,4205.7,4205.6,0.002]
[1759205437474,7.67048947,4205.7,4205.6,0.002]
[1759205438305,7.21748947,4205.7,4205.6,0.002]
[1759205438601,7.67048947,4205.7,4205.6,0.002]
[1759205438906,7.21748947,4205.7,4205.6,0.002]
[1759205439889,6.97938947,4205.7,4205.6,0.002]
[1759205441594,5.16311083,4205.7,4205.6,0.002]
[1759205441799,5.16311083,4205.7,4205.6,0.6777]
[1759205442315,5.06772546,4205.7,4205.6,0.6777]
[1759205442515,5.06772546,4205.7,4205.6,0.002]
[1759205442707,5.06772546,4205.7,4205.6,0.6777]
[1759205443421,5.06772546,4205.7,4205.6,0.002]
[1759205443991,5.06772546,4205.7,4205.6,0.2332]
[1759205444907,5.06772546,4205.7,4205.6,0.6777]
[1759205445417,2.37772546,4205.7,4205.6,0.6777]
[1759205451609,2.37772546,4205.7,4205.6,0.7961]
[1759205454631,2.37867292,4205.8,4205.6,0.7961]
[1759205454812,2.37867292,4205.8,4205.7,0.6757]
[1759205455600,2.37867292,4205.8,4205.7,4.2021]
[1759205459342,0.001,4205.8,4205.7,4.2021]
[1759205459510,0.001,4205.8,4205.7,4.63435]
[1759205460108,0.001,4205.8,4205.7,19.13435]
[1759205461322,0.001,4205.8,4205.7,18.45865]
[1759205461539,0.001,4205.8,4205.7,20.7164]
[1759205462041,0.001,4205.8,4205.7,21.3921]
[1759205464744,0.001,4205.8,4205.7,18.7021]
[1759205465041,0.001,4205.8,4205.7,21.3921]
[1759205472329,0.001,4205.8,4205.7,17.8657]
[1759205472530,0.001,4205.8,4205.7,22.04203546]
[1759205472877,0.001,4205.8,4205.7,19.66431]
[1759205473030,0.001,4205.8,4205.7,22.04203546]
[1759205473670,0.001,4205.8,4205.7,19.66431]
[1759205476171,0.001,4205.8,4205.7,22.04203546]
[1759205477157,0.001,4205.8,4205.7,22.16043546]
[1759205488391,0.001,4206.1,4205.9,2.3776124]
[1759205488584,0.001,4206.1,4206.0,4.95358116]
[1759205488887,0.001,4206.1,4206.0,5.17918116]
[1759205489289,0.001,4206.1,4206.0,7.55673703]
[1759205489491,0.2283,4206.1,4206.0,7.33113703]
[1759205490686,0.001,4206.1,4206.0,7.33113703]
[1759205491992,0.001,4206.1,4206.0,22.05673703]
[1759205492490,0.001,4206.1,4206.0,25.58213703]
[1759205492690,0.001,4206.1,4206.0,25.35653703]
[1759205492989,0.001,4206.1,4206.0,26.03583703]
[1759205493386,0.001,4206.1,4206.0,25.35653703]
[1759205493592,0.001,4206.1,4206.0,26.03583703]
[1759205498196,0.001,4206.1,4206.0,26.82783703]
[1759205502599,0.001,4206.1,4206.0,27.39400516]
[1759205507820,0.001,4206.6,4206.5,3.16927326]
[1759205507983,0.001,4206.6,4206.5,9.93733558]
[1759205508170,0.001,4206.6,4206.5,10.75573558]
[1759205508375,0.001,4206.6,4206.5,25.25573558]
[1759205508597,0.001,4206.6,4206.5,25.35104164]
[1759205509606,0.001,4206.6,4206.5,28.35104164]
[1759205514340,0.2387,4207.4,4207.2,3.16887773]
[1759205514634,0.2387,4207.4,4207.3,5.85882123]
[1759205514799,0.2387,4207.4,4207.3,9.49762123]
[1759205518438,0.6922,4207.4,4207.3,9.49762123]
[1759205519045,0.6922,4207.4,4207.3,9.49662123]
[1759205519232,0.6922,4207.4,4207.3,11.43732113]
[1759205523539,0.6922,4207.4,4207.3,3.6388]
[1759205523839,0.6922,4207.4,4207.3,6.3278]
[1759205525062,0.6922,4207.4,4207.3,3.6388]
[1759205525358,3.06896474,4207.4,4207.3,6.3278]
[1759205526265,8.95704703,4207.4,4207.3,6.3278]
[1759205526563,10.09041942,4207.4,4207.3,6.3278]
[1759205528819,4.20233713,4207.4,4207.3,6.3278]
[1759205531119,4.20233713,4207.4,4207.3,3.6388]
[1759205531327,4.20233713,4207.4,4207.3,6.3278]
[1759205535340,3.06896474,4207.4,4207.3,6.3278]
[1759205535757,3.06896474,4207.4,4207.3,2.8074]
[1759205537072,3.06896474,4207.4,4207.3,0.1184]
[1759205538640,0.2387,4207.4,4207.3,0.1184]
[1759205539162,2.61546474,4207.4,4207.3,0.1184]
[1759205539456,3.06696474,4207.4,4207.3,0.1184]
[1759205541674,3.06696474,4207.4,4207.3,3.6388]
[1759205542177,0.6902,4207.4,4207.3,3.6388]
[1759205542365,0.2387,4207.4,4207.3,3.6388]
[1759205543584,0.001,4207.4,4207.3,4.3195]
[1759205546160,0.001,4207.4,4207.3,18.8195]
[1759205546973,0.001,4207.4,4207.3,15.2991]
[1759205549489,0.001,4207.4,4207.3,17.33580287]
[1759205549690,0.001,4207.4,4207.3,19.7126241]
[1759205550481,0.001,4207.4,4207.3,16.65510287]
[1759205550792,0.001,4207.4,4207.3,17.33580287]
[1759205551495,0.001,4207.4,4207.3,19.7126241]
[1759205552091,0.001,4207.4,4207.3,17.33580287]
[1759205552389,0.001,4207.4,4207.3,19.7126241]
[1759205557414,0.001,4207.4,4207.3,20.5046241]
[1759205563111,0.001,4207.4,4207.3,20.59992584]
[1759205565414,0.001,4207.8,4207.5,2.37670825]
[1759205565615,0.001,4207.8,4207.7,2.37659528]
[1759205565912,0.2352,4207.8,4207.7,2.49499528]
[1759205566213,0.2352,4207.8,4207.7,16.99499528]
[1759205567812,0.001,4207.8,4207.7,16.99499528]
[1759205571123,0.001,4207.8,4207.7,17.22879528]
[1759205571326,0.001,4207.8,4207.7,22.78489815]
[1759205571828,0.001,4207.8,4207.7,23.22249815]
[1759205576002,0.001,4207.8,4207.7,20.49509815]
[1759205576730,0.001,4207.8,4207.7,20.05749815]
[1759205577632,0.001,4207.8,4207.7,20.49509815]
[1759205577926,0.001,4207.8,4207.7,20.05749815]
[1759205579735,0.001,4207.8,4207.7,19.82369815]
[1759205579941,0.001,4207.8,4207.7,19.03169815]
[1759205580142,0.2352,4207.8,4207.7,19.03169815]
[1759205580937,0.001,4207.8,4207.7,19.03169815]
[1759205582848,0.2352,4207.8,4207.7,21.72169815]
[1759205583218,0.2352,4207.8,4207.7,17.3074]
[1759205583627,0.2352,4207.8,4207.7,19.68399528]
[1759205586044,0.001,4207.8,4207.7,19.68399528]
[1759205586249,0.2352,4207.8,4207.7,19.68399528]
[1759205587120,0.2352,4207.8,4207.7,17.3074]
[1759205587720,0.6672,4207.8,4207.7,17.3074]
[1759205587926,0.6672,4207.8,4207.7,19.68399528]
[1759205588125,0.6672,4207.8,4207.7,17.3074]
[1759205588427,0.2352,4207.8,4207.7,17.3074]
[1759205590331,0.6934,4207.8,4207.7,14.6184]
[1759205590557,3.0699388,4207.8,4207.7,3.6378]
[1759205590754,7.60747177,4207.8,4207.7,0.1184]
[1759205590931,7.60747177,4207.8,4207.3,0.002]
[1759205590932,2.37676474,4207.4,4207.3,0.002]
[1759205591472,3.0,4207.5,4207.4,0.1184]
[1759205592071,6.06720825,4207.5,4207.4,0.1184]
[1759205592263,7.75813283,4207.5,4207.4,0.1184]
[1759205592557,7.87653283,4207.5,4207.4,0.1184]
[1759205593773,6.18560825,4207.5,4207.4,0.1184]
[1759205600382,12.0718909,4207.5,4207.4,0.1184]
[1759205609293,11.6136909,4207.5,4207.4,0.1184]
[1759205610461,12.0597909,4207.5,4207.4,0.1184]
[1759205612514,11.6311909,4207.5,4207.4,0.1184]
[1759205612703,13.72967031,4207.5,4207.4,0.1184]
[1759205616806,13.30107031,4207.5,4207.4,0.1184]
[1759205617889,2.37699072,4207.0,4206.9,0.002]
[1759205618082,16.83955602,4207.0,4206.9,0.002]
[1759205618295,22.73860284,4207.0,4206.9,0.002]
[1759205618820,22.74217888,4207.0,4206.9,0.002]
[1759205619116,22.83754015,4207.0,4206.9,0.002]
[1759205628433,2.37716024,4206.7,4206.2,0.234]
[1759205628639,14.07184289,4206.7,4206.2,0.234]
[1759205628818,16.04117012,4206.7,4206.4,0.002]
[1759205629611,16.13653139,4206.7,4206.4,0.002]
[1759205632943,5.37725327,4206.6,4206.2,0.002]
[1759205633127,2.3773863,4206.3,4206.2,0.002]
[1759205633331,2.37749934,4206.1,4206.0,1e-08]
[1759205633529,15.59873882,4206.1,4206.0,1e-08]
[1759205633741,15.83923882,4206.1,4206.0,1e-08]
[1759205634146,15.95963882,4206.1,4206.0,1e-08]
[1759205634840,16.41903882,4206.1,4206.0,1e-08]
[1759205636746,15.95963882,4206.1,4206.0,1e-08]
[1759205644727,16.41903882,4206.1,4206.0,1e-08]
[1759205648349,2.377782,4205.6,4205.5,0.002]
[1759205648551,2.37789508,4205.4,4205.3,0.002]
[1759205648859,8.18629508,4205.4,4205.3,0.002]
[1759205649035,8.42029508,4205.4,4205.3,0.002]
[1759205649237,8.78722197,4205.4,4205.3,0.002]
[1759205650860,8.90901438,4205.4,4205.3,0.002]
[1759205652567,8.90901438,4205.4,4205.3,0.695]
[1759205655563,8.90901438,4205.4,4205.3,0.002]
[1759205656770,8.90901438,4205.4,4205.3,0.2306]
[1759205659071,8.90901438,4205.4,4205.3,0.002]
[1759205660344,15.84525005,4205.4,4205.3,0.002]
[1759205660745,15.84525005,4205.4,4205.3,0.2306]
[1759205662873,15.84525005,4205.4,4205.3,0.002]
[1759205664388,15.84525005,4205.4,4205.3,0.2306]
[1759205664705,15.84525005,4205.4,4205.3,0.002]
[1759205666090,15.84525005,4205.4,4205.3,0.2306]
[1759205669259,15.84525005,4205.4,4205.3,0.002]
[1759205669784,15.84525005,4205.4,4205.3,0.459]
[1759205669993,15.84525005,4205.4,4205.3,0.002]
[1759205674897,16.09325005,4205.4,4205.3,0.002]
[1759205675391,13.40325005,4205.4,4205.3,0.002]
[1759205675596,16.09425005,4205.4,4205.3,0.002]
[1759205676411,13.40325005,4205.4,4205.3,0.002]
[1759205676614,5.61189508,4205.4,4205.3,0.002]
[1759205676790,5.37789508,4205.4,4205.3,0.6876]
[1759205680209,5.37789508,4205.4,4205.3,0.002]
[1759205680423,5.37889508,4205.4,4205.3,0.002]
[1759205680915,8.07089508,4205.4,4205.3,0.2333]
[1759205684382,8.07089508,4205.4,4205.3,0.002]
[1759205686719,8.07089508,4205.4,4205.3,0.1204]
[1759205690995,9.00595064,4205.4,4205.3,0.1204]
[1759205691203,9.47665064,4205.4,4205.3,0.002]
[1759205691536,10.19204265,4205.4,4205.3,0.002]
[1759205692215,9.72134265,4205.4,4205.3,0.002]
[1759205692943,10.19204265,4205.4,4205.3,0.002]
[1759205695843,9.72134265,4205.4,4205.3,0.002]
[1759205696001,10.19204265,4205.4,4205.3,0.002]
[1759205705614,10.1956199,4205.4,4205.3,0.002]
[1759205707018,9.7249199,4205.4,4205.3,0.002]
[1759205710768,2.37800818,4205.2,4205.1,0.002]
[1759205710952,8.06900818,4205.2,4205.1,0.002]
[1759205711147,8.74680818,4205.2,4205.1,0.002]
[1759205711555,8.84578725,4205.2,4205.1,0.002]
[1759205712373,13.10641351,4204.9,4204.8,1e-08]
[1759205712676,15.79941351,4204.9,4204.8,1e-08]
[1759205712855,16.24111351,4204.9,4204.8,1e-08]
[1759205713051,16.71701351,4204.9,4204.8,1e-08]
[1759205714377,16.27531351,4204.9,4204.8,1e-08]
[1759205714673,17.85930561,4204.9,4204.8,1e-08]
[1759205715062,17.62320561,4204.9,4204.8,1e-08]
[1759205715269,7.20196994,4204.9,4204.8,1e-08]
[1759205715448,9.89496994,4204.9,4204.8,0.69200001]
[1759205716256,7.20196994,4204.9,4204.8,0.69200001]
[1759205716465,2.61797784,4204.9,4204.8,0.69200001]
[1759205716669,5.31097784,4204.9,4204.8,0.69200001]
[1759205716862,8.31097784,4204.9,4204.8,0.69200001]
[1759205722296,14.20489557,4204.9,4204.8,0.69200001]
[1759205725602,3.0,4204.9,4204.8,0.69200001]
[1759205725804,3.0,4204.9,4204.8,1.24575836]
[1759205729313,3.0,4204.9,4204.8,4.76515836]
[1759205729810,3.0,4204.9,4204.8,19.26515836]
[1759205731708,3.001,4204.9,4204.8,19.26515836]
[1759205732690,3.001,4204.9,4204.8,4.76515836]
[1759205733179,3.001,4204.9,4204.8,19.26515836]
[1759205736127,5.37917784,4204.9,4204.8,4.76515836]
[1759205736335,3.001,4204.9,4204.8,4.76515836]
[1759205736545,3.001,4204.9,4204.8,7.45815836]
[1759205736745,3.001,4204.9,4204.8,21.95815836]
[1759205736947,0.001,4204.9,4204.8,21.95815836]
[1759205737127,0.001,4204.9,4204.8,24.33639275]
[1759205737328,0.001,4204.9,4204.8,21.95815836]
[1759205745719,0.001,4204.9,4204.8,24.33639275]
[1759205746249,0.001,4204.9,4204.8,21.95815836]
[1759205746956,0.001,4204.9,4204.8,24.33639275]
[1759205747660,0.001,4204.9,4204.8,21.95815836]
[1759205748552,0.001,4204.9,4204.8,24.33639275]
[1759205748759,0.001,4204.9,4204.8,21.95815836]
[1759205748933,0.001,4204.9,4204.8,21.26615836]
[1759205749623,0.001,4204.9,4204.8,21.95795836]
[1759205750848,0.001,4204.9,4204.8,24.33619275]
[1759205756847,0.001,4204.9,4204.8,21.95795836]
[1759205757379,0.001,4204.9,4204.8,24.33619275]
[1759205757877,0.001,4204.9,4204.8,21.95795836]
[1759205758084,0.001,4204.9,4204.8,18.13780001]
[1759205758285,0.2443,4204.9,4204.8,20.82880001]
[1759205760775,0.001,4204.9,4204.8,20.82880001]
[1759205761587,0.2443,4204.9,4204.8,20.82880001]
[1759205762058,0.6987,4204.9,4204.8,20.82880001]
[1759205762859,0.2443,4204.9,4204.8,20.82880001]
[1759205763085,0.001,4204.9,4204.8,21.07450001]
[1759205763480,0.2443,4204.9,4204.8,20.82880001]
[1759205763675,0.001,4204.9,4204.8,20.82880001]
[1759205763875,0.2443,4204.9,4204.8,20.82880001]
[1759205764678,0.2443,4204.9,4204.8,18.13780001]
[1759205764987,0.6987,4204.9,4204.8,20.82880001]
[1759205765191,0.2443,4204.9,4204.8,20.82880001]
[1759205765395,0.001,4204.9,4204.8,20.82880001]
[1759205765772,0.2443,4204.9,4204.8,20.82880001]
[1759205773203,2.62247784,4204.9,4204.8,20.82880001]
[1759205773603,7.50105857,4204.9,4204.8,3.63780001]
[1759205773804,6.18457784,4204.9,4204.8,1e-08]
[1759205774006,6.9001166,4204.9,4204.8,1e-08]
[1759205774577,9.5911166,4204.9,4204.8,1e-08]
[1759205784197,16.5304418,4204.9,4204.8,1e-08]
[1759205785199,0.12093907,4206.0,4204.9,2.37817784]
[1759205785399,0.001,4206.7,4205.2,3.17000818]
[1759205785609,0.001,4206.7,4206.1,16.87749934]
[1759205785931,0.001,4206.7,4206.2,2.37744282]
[1759205786244,0.001,4206.7,4206.2,3.86485129]
[1759205786609,0.001,4206.7,4206.2,4.63307687]
[1759205786928,0.001,4206.7,4206.2,5.48644825]
[1759205787098,0.001,4206.7,4206.2,3.10900543]
[1759205787527,0.001,4206.7,4206.2,5.48644825]
[1759205789227,0.001,4206.7,4206.2,3.08914282]
[1759205789424,0.001,4206.7,4206.2,17.61291724]
[1759205789633,0.001,4206.7,4206.2,17.58914282]
[1759205790429,0.001,4206.7,4206.2,15.2117]
[1759205795397,0.001,4206.7,4206.2,15.3301]
[1759205795598,0.001,4206.7,4206.2,17.14674331]
[1759205796130,0.001,4206.7,4206.2,17.37804331]
[1759205797237,0.001,4206.7,4206.2,19.75548613]
[1759205797738,0.001,4206.7,4206.2,23.27488613]
[1759205798037,0.001,4206.7,4206.2,20.89744331]
[1759205799233,0.001,4206.7,4206.2,23.27488613]
[1759205801838,0.001,4206.7,4206.2,20.89744331]
[1759205802342,0.001,4206.7,4206.2,23.27488613]
[1759205803308,0.001,4206.7,4206.2,23.04358613]
[1759205803706,0.001,4206.7,4206.2,20.66614331]
[1759205804645,0.001,4206.7,4206.2,23.04358613]
[1759205805150,0.001,4206.7,4206.2,20.66614331]
[1759205805513,0.001,4206.7,4206.2,23.04358613]
[1759205811044,0.001,4206.7,4206.2,19.95444331]
[1759205811292,0.2418,4206.5,4206.2,19.95444331]
[1759205811648,0.2418,4206.5,4206.2,20.19204331]
[1759205811876,0.2418,4206.5,4206.2,20.62924331]
[1759205812254,0.2418,4206.5,4206.2,23.00668613]
[1759205814175,0.2418,4206.5,4206.2,20.62924331]
[1759205814686,0.2418,4206.5,4206.2,19.95444331]
[1759205815409,0.2418,4206.5,4206.2,20.19204331]
[1759205815812,0.2418,4206.5,4206.2,22.56948613]
[1759205816111,0.2418,4206.5,4206.2,20.62924331]
[1759205816407,0.2428,4206.7,4206.2,18.1378]
[1759205816721,0.7091,4206.3,4206.2,20.8648]
[1759205816874,0.2428,4206.3,4206.2,20.8648]
[1759205817079,0.7091,4206.3,4206.2,20.8648]
[1759205819297,0.2428,4206.3,4206.2,20.8648]
[1759205819833,3.0864863,4206.3,4206.2,3.6378]
[1759205820132,4.08906745,4206.3,4206.2,3.6378]
[1759205820428,4.08906745,4206.3,4206.2,0.1184]
[1759205829298,2.37744282,4206.2,4206.1,0.002]
[1759205829503,9.31676802,4206.2,4206.1,0.002]
[1759205829705,11.88972385,4206.2,4206.1,0.002]
[1759205832668,4.24019865,4206.2,4206.1,0.002]
[1759205832954,7.20079865,4206.2,4206.1,0.002]
[1759205833150,5.33804282,4206.2,4206.1,0.002]
[1759205833523,2.37744282,4206.2,4206.1,0.002]
[1759205833732,2.37744282,4206.2,4206.1,0.8158]
[1759205837539,2.37839772,4206.3,4206.1,0.8158]
[1759205837740,0.001,4206.3,4206.2,0.6895]
[1759205837947,2.3783863,4206.3,4206.2,15.1895]
[1759205838742,0.001,4206.3,4206.2,15.1895]
[1759205839367,0.001,4206.3,4206.2,18.7089]
[1759205839558,0.001,4206.3,4206.2,20.23989]
[1759205840442,0.001,4206.3,4206.2,22.61733282]
[1759205840966,0.001,4206.3,4206.2,22.73573282]
[1759205845102,0.001,4206.3,4206.2,23.52773282]
[1759205845390,0.001,4206.3,4206.2,23.40933282]
[1759205848292,0.001,4206.7,4206.4,3.5184]
[1759205848588,0.001,4206.7,4206.5,8.63570543]
[1759205848813,0.001,4206.7,4206.6,2.37721675]
[1759205848993,0.001,4206.7,4206.6,17.11331675]
[1759205849405,0.001,4206.7,4206.6,17.56671675]
[1759205850788,0.001,4206.7,4206.6,14.5]
[1759205850989,0.001,4206.7,4206.6,16.04648573]
[1759205852267,0.001,4206.7,4206.6,18.42370248]
[1759205853392,0.2442,4206.7,4206.6,16.04648573]
[1759205853705,0.001,4206.7,4206.6,18.42370248]
[1759205854093,0.001,4206.7,4206.6,21.94210248]
[1759205854907,0.001,4206.7,4206.6,19.56488573]
[1759205855273,0.001,4206.7,4206.6,19.68328573]
[1759205855778,0.001,4206.7,4206.6,22.06050248]
[1759205858508,0.001,4206.7,4206.6,22.75000248]
[1759205861903,0.001,4206.7,4206.6,24.77650248]
[1759205863503,0.001,4206.7,4206.6,25.01190248]
[1759205865621,0.001,4206.7,4206.6,25.67980248]
[1759205868702,0.001,4206.7,4206.6,25.23790248]
[1759205869419,0.001,4206.7,4206.6,25.01190248]
[1759205874018,0.001,4206.7,4206.6,22.63468573]
[1759205874246,0.2364,4206.7,4206.6,21.0882]
[1759205874752,0.2364,4206.7,4206.6,23.46541675]
[1759205875531,0.001,4206.7,4206.6,23.46541675]
[1759205875841,0.2364,4206.7,4206.6,23.46541675]
[1759205876448,0.2364,4206.7,4206.6,21.0882]
[1759205878147,8.93532599,4206.7,4206.4,3.5184]
[1759205878346,2.37732978,4206.4,4206.3,0.002]
[1759205878548,8.2627767,4206.4,4206.3,0.002]
[1759205878751,8.9344767,4206.4,4206.3,0.002]
[1759205878940,9.02983728,4206.4,4206.3,0.002]
[1759205880419,12.02983728,4206.4,4206.3,0.002]
[1759205880725,13.83140637,4206.4,4206.3,0.002]
[1759205884025,2.37744282,4206.2,4206.1,1e-08]
[1759205884523,6.04914282,4206.2,4206.1,1e-08]
[1759205888357,6.14452388,4206.2,4206.1,1e-08]
[1759205888534,10.7498165,4206.2,4206.1,1e-08]
[1759205890258,7.3651165,4206.2,4206.1,1e-08]
[1759205890455,10.0781165,4206.2,4206.1,1e-08]
[1759205893556,10.3185165,4206.2,4206.1,1e-08]
[1759205894560,10.0781165,4206.2,4206.1,1e-08]
[1759205894767,10.7783165,4206.2,4206.1,1e-08]
[1759205897361,10.7644165,4206.2,4206.1,1e-08]